fUSD/lending_fUSD_20251017
["ID","MTS","AMOUNT","RATE_DAILY","PERIOD"]
[391692431,1760730646645,-18471.8455681,0.00043715,3]
[391692433,1760730646655,-3111.2355698,0.00043715,3]
[391692434,1760730646664,-150.0,0.0004372,30]
[391692436,1760730646673,-73887.3822722,0.00043725,3]
[391692438,1760730646682,-12444.9422792,0.00043725,3]
[391692440,1760730646691,-98420.3889,0.00043735,2]
[391692442,1760730646701,-17840.80845991,0.00043739,3]
[391692446,1760730646730,-631.03710819,0.00043739,3]
[391692448,1760730646743,-150.0,0.00043752,30]
[391692450,1760730646752,-500.0,0.000438,15]
[391692452,1760730646761,-11407.02463012,0.00043805,3]
[391692455,1760730646776,-3096.16334906,0.00043805,3]
[391692457,1760730646788,-270.00005,0.00043805,3]
[391692459,1760730646799,-2157.92961323,0.00043805,3]
[391692461,1760730646810,-336.3733244,0.00043805,3]
[391692463,1760730646821,-1204.35460129,0.00043805,3]
[391692465,1760730646830,-4666.8533547,0.00043805,3]
[391692467,1760730646840,-150.0,0.0004381,30]
[391692470,1760730646850,-18471.8455681,0.00043814,3]
[391692472,1760730646860,-1555.6177849,0.00043814,3]
[391692474,1760730646869,-1771.10965501,0.00043815,3]
[391692476,1760730646881,-285.88292188,0.00043815,3]
[391692478,1760730646897,-418.54789703,0.00043815,3]
[391692493,1760730647029,-150.0,0.00033551,3]
[391692495,1760730647039,-300.0,0.00035791,3]
[391692497,1760730647048,-150.0,0.00037245,3]
[391692499,1760730647057,-300.0,0.00039485,3]
[391692501,1760730647067,-249.25229633,0.00043815,3]
[391692504,1760730647083,-4791.63547938,0.00043815,3]
[391692508,1760730647114,-485.74255521,0.00043815,3]
[391692526,1760730647277,-6745.00391089,0.000198,2]
[391692529,1760730647288,-2334.99608912,0.0002,2]
[391692531,1760730647302,-4410.00782177,0.0002,2]
[391692533,1760730647311,-6745.00391089,0.000202,2]
[391692535,1760730647321,-431.915906,0.000342,30]
[391692537,1760730647330,-150.0,0.00039173,3]
[391692539,1760730647339,-227.9350964,0.00041413,3]
[391692542,1760730647357,-500.0,0.00032,8]
[391692544,1760730647366,-72.0649036,0.00041413,3]
[391692546,1760730647375,-150.0,0.00041623,3]
[391692548,1760730647385,-27924.9350963,0.00043815,3]
[391692550,1760730647397,-19488.43080296,0.00043815,3]
[391692552,1760730647407,-7778.0889245,0.00043815,3]
[391692554,1760730647417,-576.54373215,0.00043815,30]
[391692556,1760730647426,-1449.04,0.00043824,120]
[391692558,1760730647435,-1449.04,0.00043824,120]
[391692560,1760730647448,-1449.04,0.00043824,120]
[391692562,1760730647459,-1449.04,0.00043824,120]
[391692564,1760730647469,-1449.04,0.00043824,120]
[391692573,1760730647542,-1449.04,0.00043824,120]
[391692575,1760730647552,-1449.04,0.00043824,120]
[391692577,1760730647561,-1449.04,0.00043824,120]
[391692579,1760730647570,-1449.04,0.00043824,120]
[391692581,1760730647579,-1449.04,0.00043824,120]
[391692583,1760730647589,-1449.04,0.00043824,120]
[391692585,1760730647598,-1449.04,0.00043824,120]
[391692587,1760730647607,-1449.04,0.00043824,120]
[391692589,1760730647617,-1449.04,0.00043824,120]
[391692591,1760730647626,-1449.04,0.00043824,120]
[391692593,1760730647635,-1449.04,0.00043824,120]
[391692595,1760730647644,-1449.04,0.00043824,120]
[391692597,1760730647653,-1449.04,0.00043824,120]
[391692599,1760730647662,-1449.04,0.00043824,120]
[391692601,1760730647671,-1449.04,0.00043824,120]
[391692602,1760730647680,-1449.04,0.00043824,120]
[391692604,1760730647689,-1449.04,0.00043824,120]
[391692606,1760730647699,-1449.04,0.00043824,120]
[391692608,1760730647708,-1449.12787597,0.00043824,120]
[391692610,1760730647717,-3001.45703176,0.00043824,2]
[391692612,1760730647727,-55415.5367041,0.00043825,3]
[391692614,1760730647739,-14000.5600641,0.00043825,3]
[391692616,1760730647748,-151.0,0.00043832,120]
[391692617,1760730647757,-403.25414979,0.00043835,120]
[391692618,1760730647766,-295.74442227,0.00043835,120]
[391692619,1760730647774,-500.0,0.00043835,120]
[391692621,1760730647785,-500.0,0.00043835,120]
[391692623,1760730647794,-500.0,0.00043835,120]
[391692625,1760730647803,-500.0,0.00043835,120]
[391692627,1760730647814,-500.0,0.00043835,120]
[391692629,1760730647823,-500.0,0.00043835,120]
[391692631,1760730647831,-500.0,0.00043835,120]
[391692633,1760730647840,-500.0,0.00043835,120]
[391692635,1760730647849,-500.0,0.00043835,120]
[391692637,1760730647859,-500.0,0.00043835,120]
[391692638,1760730647868,-500.0,0.00043835,120]
[391692639,1760730647877,-505.96262885,0.00043835,120]
[391692640,1760730647886,-500.0,0.00043835,120]
[391692641,1760730647895,-500.0,0.00043835,120]
[391692642,1760730647904,-500.0,0.00043835,120]
[391692643,1760730647914,-400.0,0.00043835,120]
[391692645,1760730647923,-500.0,0.00043835,120]
[391692647,1760730647932,-500.0,0.00043835,120]
[391692649,1760730647941,-500.0,0.00043835,120]
[391692651,1760730647951,-500.0,0.00043835,120]
[391692652,1760730647961,-500.0,0.00043835,120]
[391692655,1760730647971,-500.0,0.00043835,120]
[391692657,1760730647981,-500.0,0.00043835,120]
[391692659,1760730647990,-500.0,0.00043835,120]
[391692661,1760730647999,-161.05725575,0.00043835,120]
[391692662,1760730648008,-502.86816992,0.00043835,120]
[391692664,1760730648017,-502.02201423,0.00043835,120]
[391692666,1760730648027,-500.0,0.00043835,120]
[391692668,1760730648035,-504.21820542,0.00043835,120]
[391692670,1760730648044,-500.0,0.00043835,120]
[391692672,1760730648054,-501.03696464,0.00043835,120]
[391692674,1760730648063,-500.0,0.00043835,120]
[391692676,1760730648072,-502.06004589,0.00043835,120]
[391692678,1760730648081,-500.0,0.00043835,120]
[391692680,1760730648090,-503.45832364,0.00043835,120]
[391692682,1760730648099,-501.61411931,0.00043835,120]
[391692684,1760730648107,-500.0,0.00043835,120]
[391692686,1760730648117,-507.25442039,0.00043835,120]
[391692688,1760730648126,-503.07052593,0.00043835,120]
[391692690,1760730648135,-500.0,0.00043835,120]
[391692692,1760730648144,-500.0,0.00043835,120]
[391692693,1760730648152,-500.0,0.00043835,120]
[391692695,1760730648162,-500.0,0.00043835,120]
[391692697,1760730648171,-504.16,0.00043835,120]
[391692699,1760730648180,-500.0,0.00043835,120]
[391692701,1760730648189,-500.0,0.00043835,120]
[391692703,1760730648199,-500.0,0.00043835,120]
[391692705,1760730648209,-502.70929877,0.00043835,120]
[391692707,1760730648218,-501.16389806,0.00043835,120]
[391692709,1760730648227,-500.0,0.00043835,120]
[391692711,1760730648237,-500.0,0.00043835,120]
[391692713,1760730648246,-500.0,0.00043835,120]
[391692715,1760730648255,-178.45696124,0.00043835,120]
[391692717,1760730648264,-573.16143346,0.00043835,120]
[391692719,1760730648273,-352.11547726,0.00043835,120]
[391692721,1760730648282,-500.0,0.00043835,120]
[391692723,1760730648292,-500.0,0.00043835,120]
[391692725,1760730648301,-273.78870446,0.00043835,120]
[391692727,1760730648310,-500.0,0.00043835,120]
[391692729,1760730648319,-500.0,0.00043835,120]
[391692731,1760730648329,-500.0,0.00043835,120]
[391692733,1760730648338,-500.0,0.00043835,120]
[391692735,1760730648347,-500.0,0.00043835,7]
[391692737,1760730648357,-500.0,0.00043835,120]
[391692738,1760730648367,-500.0,0.00043835,120]
[391692739,1760730648376,-500.0,0.00043835,120]
[391692740,1760730648386,-500.0,0.00043835,120]
[391692741,1760730648396,-500.0,0.00043835,120]
[391692742,1760730648406,-500.0,0.00043835,120]
[391692743,1760730648416,-500.0,0.00043835,120]
[391692744,1760730648426,-428.98091251,0.00043835,7]
[391692745,1760730648435,-500.0,0.00043835,120]
[391692746,1760730648445,-500.0,0.00043835,120]
[391692747,1760730648455,-500.0,0.00043835,120]
[391692748,1760730648470,-500.0,0.00043835,120]
[391692749,1760730648480,-461.51764525,0.00043835,120]
[391692750,1760730648489,-500.0,0.00043835,120]
[391692751,1760730648499,-233.36622653,0.00043835,120]
[391692752,1760730648508,-500.0,0.00043835,120]
[391692753,1760730648518,-500.0,0.00043835,120]
[391692755,1760730648527,-500.0,0.00043835,120]
[391692756,1760730648538,-500.0,0.00043835,120]
[391692759,1760730648547,-500.0,0.00043835,120]
[391692760,1760730648557,-500.0,0.00043835,120]
[391692761,1760730648567,-500.0,0.00043835,120]
[391692762,1760730648577,-500.0,0.00043835,120]
[391692763,1760730648586,-500.0,0.00043835,120]
[391692764,1760730648595,-500.0,0.00043835,120]
[391692765,1760730648604,-500.0,0.00043835,120]
[391692766,1760730648614,-500.0,0.00043835,120]
[391692767,1760730648624,-500.0,0.00043835,120]
[391692768,1760730648634,-500.0,0.00043835,120]
[391692769,1760730648643,-500.0,0.00043835,120]
[391692770,1760730648653,-500.0,0.00043835,120]
[391692771,1760730648664,-500.0,0.00043835,120]
[391692772,1760730648674,-500.0,0.00043835,120]
[391692774,1760730648683,-500.0,0.00043835,120]
[391692776,1760730648693,-500.0,0.00043835,120]
[391692778,1760730648702,-500.0,0.00043835,120]
[391692780,1760730648713,-500.0,0.00043835,120]
[391692782,1760730648723,-500.0,0.00043835,120]
[391692784,1760730648733,-500.0,0.00043835,120]
[391692786,1760730648748,-500.0,0.00043835,120]
[391692788,1760730648757,-500.0,0.00043835,120]
[391692790,1760730648766,-500.0,0.00043835,120]
[391692792,1760730648775,-500.0,0.00043835,120]
[391692794,1760730648785,-500.92999916,0.00043835,120]
[391692796,1760730648794,-500.0,0.00043835,120]
[391692798,1760730648803,-500.0,0.00043835,120]
[391692800,1760730648813,-500.0,0.00043835,120]
[391692801,1760730648822,-500.0,0.00043835,120]
[391692803,1760730648831,-500.0,0.00043835,120]
[391692806,1760730648841,-500.0,0.00043835,120]
[391692807,1760730648850,-500.0,0.00043835,120]
[391692809,1760730648859,-500.0,0.00043835,120]
[391692811,1760730648869,-500.0,0.00043835,120]
[391692813,1760730648878,-500.0,0.00043835,120]
[391692815,1760730648887,-421.21547277,0.00043835,120]
[391692817,1760730648896,-500.0,0.00043835,120]
[391692819,1760730648905,-500.0,0.00043835,120]
[391692821,1760730648915,-500.0,0.00043835,120]
[391692823,1760730648927,-500.0,0.00043835,120]
[391692825,1760730648935,-500.0,0.00043835,120]
[391692827,1760730648945,-500.0,0.00043835,120]
[391692829,1760730648954,-500.0,0.00043835,2]
[391692831,1760730648965,-500.0,0.00043835,120]
[391692833,1760730648975,-231.25367231,0.00043835,120]
[391692835,1760730648984,-500.0,0.00043835,120]
[391692837,1760730648993,-570.53026194,0.00043835,120]
[391692839,1760730649003,-500.0,0.00043835,120]
[391692841,1760730649012,-500.0,0.00043835,120]
[391692843,1760730649022,-500.0,0.00043835,120]
[391692845,1760730649031,-601.1,0.00043835,120]
[391692847,1760730649040,-500.0,0.00043835,120]
[391692849,1760730649050,-500.0,0.00043835,120]
[391692851,1760730649059,-500.0,0.00043835,120]
[391692853,1760730649068,-500.0,0.00043835,120]
[391692855,1760730649077,-535.20775871,0.00043835,120]
[391692857,1760730649086,-500.0,0.00043835,120]
[391692859,1760730649096,-500.0,0.00043835,120]
[391692861,1760730649105,-191.09,0.00043835,120]
[391692863,1760730649114,-500.0,0.00043835,120]
[391692865,1760730649124,-295.43107867,0.00043835,120]
[391692867,1760730649133,-500.0,0.00043835,120]
[391692868,1760730649142,-500.0,0.00043835,120]
[391692870,1760730649151,-500.0,0.00043835,120]
[391692872,1760730649160,-500.0,0.00043835,120]
[391692874,1760730649170,-500.0,0.00043835,120]
[391692876,1760730649179,-500.0,0.00043835,120]
[391692878,1760730649188,-500.0,0.00043835,120]
[391692880,1760730649198,-500.0,0.00043835,120]
[391692882,1760730649208,-500.58096487,0.00043835,120]
[391692884,1760730649220,-501.57358422,0.00043835,120]
[391692887,1760730649231,-500.0,0.00043835,120]
[391692888,1760730649240,-500.0,0.00043835,120]
[391692890,1760730649249,-500.0,0.00043835,120]
[391692892,1760730649258,-501.89062863,0.00043835,120]
[391692894,1760730649267,-500.0,0.00043835,30]
[391692896,1760730649277,-500.0,0.00043835,120]
[391692898,1760730649286,-500.5829998,0.00043835,120]
[391692900,1760730649296,-500.0,0.00043835,120]
[391692902,1760730649305,-500.0,0.00043835,120]
[391692904,1760730649315,-500.0,0.00043835,120]
[391692906,1760730649325,-500.0,0.00043835,120]
[391692908,1760730649335,-500.0,0.00043835,120]
[391692911,1760730649345,-500.0,0.00043835,120]
[391692913,1760730649355,-500.0,0.00043835,120]
[391692915,1760730649364,-500.0,0.00043835,120]
[391692917,1760730649373,-500.0,0.00043835,120]
[391692919,1760730649382,-500.0,0.00043835,120]
[391692921,1760730649392,-500.0,0.00043835,30]
[391692923,1760730649401,-500.0,0.00043835,120]
[391692925,1760730649411,-500.0,0.00043835,120]
[391692927,1760730649420,-500.0,0.00043835,120]
[391692928,1760730649430,-500.0,0.00043835,120]
[391692930,1760730649439,-500.0,0.00043835,120]
[391692932,1760730649448,-501.1730539,0.00043835,120]
[391692934,1760730649458,-500.0,0.00043835,120]
[391692936,1760730649469,-500.0,0.00043835,120]
[391692938,1760730649479,-500.0,0.00043835,120]
[391692940,1760730649488,-500.0,0.00043835,120]
[391692942,1760730649497,-1000.0,0.00043835,30]
[391692944,1760730649507,-500.0,0.00043835,120]
[391692946,1760730649517,-500.0,0.00043835,120]
[391692948,1760730649526,-500.0,0.00043835,120]
[391692950,1760730649536,-500.84820284,0.00043835,120]
[391692952,1760730649545,-300.0,0.00043835,120]
[391692954,1760730649555,-500.0,0.00043835,120]
[391692956,1760730649564,-560.08104386,0.00043835,120]
[391692958,1760730649574,-500.0,0.00043835,120]
[391692960,1760730649584,-423.08213886,0.00043835,120]
[391692962,1760730649593,-500.0,0.00043835,120]
[391692964,1760730649604,-500.0,0.00043835,120]
[391692966,1760730649614,-500.0,0.00043835,120]
[391692968,1760730649623,-500.68949286,0.00043835,120]
[391692970,1760730649633,-500.0,0.00043835,120]
[391692972,1760730649643,-500.0,0.00043835,120]
[391692974,1760730649653,-500.0,0.00043835,120]
[391692976,1760730649662,-500.0,0.00043835,120]
[391692978,1760730649672,-500.0,0.00043835,120]
[391692980,1760730649681,-500.0,0.00043835,120]
[391692982,1760730649690,-500.0,0.00043835,120]
[391692984,1760730649699,-500.0,0.00043835,120]
[391692985,1760730649709,-500.0,0.00043835,120]
[391692987,1760730649720,-500.0,0.00043835,120]
[391692990,1760730649730,-500.0,0.00043835,120]
[391692991,1760730649744,-501.37274405,0.00043835,120]
[391692993,1760730649754,-204.21699254,0.00043835,120]
[391692996,1760730649763,-500.0,0.00043835,120]
[391692997,1760730649773,-499.99650782,0.00043835,120]
[391692999,1760730649783,-500.0,0.00043835,120]
[391693001,1760730649793,-579.8062309,0.00043835,120]
[391693003,1760730649802,-500.0,0.00043835,120]
[391693005,1760730649813,-500.0,0.00043835,120]
[391693007,1760730649823,-500.0,0.00043835,120]
[391693009,1760730649833,-500.37961031,0.00043835,120]
[391693011,1760730649843,-549.16280787,0.00043835,120]
[391693013,1760730649853,-500.0,0.00043835,120]
[391693015,1760730649863,-224.82639448,0.00043835,120]
[391693017,1760730649873,-500.0,0.00043835,120]
[391693019,1760730649882,-500.0,0.00043835,120]
[391693021,1760730649891,-500.0,0.00043835,120]
[391693023,1760730649901,-500.0,0.00043835,120]
[391693025,1760730649910,-500.0,0.00043835,120]
[391693027,1760730649920,-503.99679286,0.00043835,120]
[391693029,1760730649929,-500.0,0.00043835,120]
[391693031,1760730649939,-500.0,0.00043835,120]
[391693033,1760730649948,-500.0,0.00043835,120]
[391693035,1760730649957,-500.0,0.00043835,120]
[391693037,1760730649968,-500.0,0.00043835,120]
[391693039,1760730649977,-500.0,0.00043835,120]
[391693041,1760730649987,-500.0,0.00043835,120]
[391693043,1760730649996,-500.0,0.00043835,120]
[391693045,1760730650005,-637.25581468,0.00043835,120]
[391693047,1760730650015,-526.87550729,0.00043835,120]
[391693049,1760730650024,-500.0,0.00043835,120]
[391693051,1760730650035,-500.0,0.00043835,120]
[391693053,1760730650044,-500.0,0.00043835,120]
[391693055,1760730650053,-500.0,0.00043835,120]
[391693057,1760730650063,-500.0,0.00043835,120]
[391693059,1760730650072,-3598.964718,0.00043835,120]
[391693061,1760730650081,-506.69186955,0.00043835,120]
[391693063,1760730650092,-500.0,0.00043835,120]
[391693065,1760730650101,-500.0,0.00043835,120]
[391693067,1760730650111,-458.189006,0.00043835,120]
[391693069,1760730650121,-500.0,0.00043835,120]
[391693071,1760730650130,-418.00527162,0.00043835,120]
[391693073,1760730650140,-500.0,0.00043835,120]
[391693075,1760730650149,-500.0,0.00043835,120]
[391693077,1760730650159,-500.0,0.00043835,120]
[391693079,1760730650169,-500.0,0.00043835,120]
[391693081,1760730650179,-500.0,0.00043835,120]
[391693083,1760730650188,-500.0,0.00043835,120]
[391693085,1760730650197,-500.0,0.00043835,120]
[391693087,1760730650206,-500.0,0.00043835,120]
[391693089,1760730650216,-500.0,0.00043835,120]
[391693091,1760730650226,-500.0,0.00043835,120]
[391693093,1760730650235,-500.75130914,0.00043835,120]
[391693095,1760730650245,-500.0,0.00043835,120]
[391693097,1760730650255,-500.15262092,0.00043835,120]
[391693099,1760730650265,-226.64519572,0.00043835,120]
[391693101,1760730650275,-500.0,0.00043835,120]
[391693103,1760730650284,-317.56229895,0.00043835,120]
[391693105,1760730650294,-500.7688304,0.00043835,120]
[391693107,1760730650303,-500.0,0.00043835,120]
[391693109,1760730650313,-500.0,0.00043835,120]
[391693111,1760730650322,-500.0,0.00043835,120]
[391693113,1760730650331,-500.0,0.00043835,120]
[391693115,1760730650341,-500.0,0.00043835,120]
[391693117,1760730650350,-500.0,0.00043835,120]
[391693119,1760730650359,-500.0,0.00043835,120]
[391693121,1760730650369,-500.0,0.00043835,120]
[391693123,1760730650380,-500.0,0.00043835,120]
[391693125,1760730650389,-500.0,0.00043835,120]
[391693127,1760730650398,-500.71179568,0.00043835,120]
[391693128,1760730650408,-500.0,0.00043835,120]
[391693130,1760730650418,-500.0,0.00043835,120]
[391693132,1760730650427,-500.7283046,0.00043835,120]
[391693134,1760730650436,-500.0,0.00043835,120]
[391693135,1760730650446,-500.83837505,0.00043835,120]
[391693136,1760730650456,-500.0,0.00043835,120]
[391693137,1760730650466,-530.07368561,0.00043835,120]
[391693138,1760730650476,-501.21386612,0.00043835,120]
[391693139,1760730650485,-500.0,0.00043835,120]
[391693140,1760730650495,-500.0,0.00043835,120]
[391693141,1760730650505,-500.0,0.00043835,120]
[391693142,1760730650514,-501.26002611,0.00043835,120]
[391693143,1760730650524,-500.0,0.00043835,120]
[391693144,1760730650534,-500.0,0.00043835,120]
[391693145,1760730650544,-500.87242962,0.00043835,120]
[391693146,1760730650554,-500.0,0.00043835,120]
[391693147,1760730650564,-500.84769744,0.00043835,120]
[391693148,1760730650574,-500.9565902,0.00043835,120]
[391693149,1760730650583,-500.56211323,0.00043835,120]
[391693150,1760730650594,-501.38879038,0.00043835,120]
[391693151,1760730650603,-507.1119946,0.00043835,120]
[391693152,1760730650613,-500.16683726,0.00043835,120]
[391693153,1760730650623,-500.15019699,0.00043835,120]
[391693154,1760730650633,-500.0,0.00043835,120]
[391693155,1760730650642,-500.0,0.00043835,120]
[391693156,1760730650652,-500.0,0.00043835,120]
[391693157,1760730650662,-500.25961834,0.00043835,120]
[391693158,1760730650672,-500.0,0.00043835,120]
[391693159,1760730650681,-500.70570431,0.00043835,120]
[391693160,1760730650691,-500.0,0.00043835,120]
[391693161,1760730650700,-501.42712897,0.00043835,120]
[391693162,1760730650709,-501.5293171,0.00043835,120]
[391693163,1760730650720,-500.0,0.00043835,120]
[391693164,1760730650730,-500.0,0.00043835,120]
[391693165,1760730650743,-500.0,0.00043835,120]
[391693166,1760730650753,-500.0,0.00043835,120]
[391693167,1760730650762,-500.0,0.00043835,120]
[391693168,1760730650772,-500.0,0.00043835,120]
[391693169,1760730650783,-500.0,0.00043835,120]
[391693170,1760730650792,-500.0,0.00043835,120]
[391693171,1760730650802,-507.3014434,0.00043835,120]
[391693172,1760730650812,-503.98384274,0.00043835,120]
[391693173,1760730650821,-500.0,0.00043835,120]
[391693174,1760730650830,-500.0,0.00043835,120]
[391693175,1760730650841,-404.77825019,0.00043835,120]
[391693176,1760730650851,-500.0,0.00043835,120]
[391693177,1760730650860,-500.0,0.00043835,120]
[391693178,1760730650870,-500.0,0.00043835,120]
[391693179,1760730650881,-500.0,0.00043835,120]
[391693180,1760730650891,-500.0,0.00043835,120]
[391693181,1760730650901,-398.13124189,0.00043835,120]
[391693182,1760730650911,-500.0,0.00043835,120]
[391693183,1760730650920,-500.0,0.00043835,2]
[391693184,1760730650930,-330.06457737,0.00043835,120]
[391693185,1760730650940,-324.79387077,0.00043835,120]
[391693186,1760730650949,-500.0,0.00043835,120]
[391693187,1760730650959,-500.0,0.00043835,120]
[391693188,1760730650970,-506.18168983,0.00043835,120]
[391693189,1760730650980,-299.6208855,0.00043835,120]
[391693190,1760730650989,-500.0,0.00043835,120]
[391693191,1760730650999,-500.0,0.00043835,60]
[391693192,1760730651009,-500.0,0.00043835,120]
[391693193,1760730651019,-502.65495648,0.00043835,120]
[391693194,1760730651028,-500.0,0.00043835,120]
[391693195,1760730651037,-438.8323057,0.00043835,120]
[391693196,1760730651047,-500.0,0.00043835,120]
[391693197,1760730651057,-500.0,0.00043835,120]
[391693198,1760730651066,-500.0,0.00043835,120]
[391693199,1760730651075,-500.0,0.00043835,120]
[391693200,1760730651084,-500.0,0.00043835,120]
[391693201,1760730651094,-500.0,0.00043835,120]
[391693202,1760730651103,-1000.0,0.00043835,120]
[391693203,1760730651113,-500.0,0.00043835,120]
[391693204,1760730651123,-500.0,0.00043835,120]
[391693205,1760730651133,-500.0,0.00043835,120]
[391693206,1760730651143,-500.0,0.00043835,120]
[391693207,1760730651152,-500.0,0.00043835,120]
[391693208,1760730651162,-500.0,0.00043835,120]
[391693209,1760730651171,-463.63220364,0.00043835,120]
[391693210,1760730651181,-500.0,0.00043835,120]
[391693211,1760730651191,-500.0,0.00043835,120]
[391693212,1760730651200,-500.0,0.00043835,120]
[391693213,1760730651212,-500.0,0.00043835,120]
[391693214,1760730651223,-311.86,0.00043835,120]
[391693215,1760730651233,-500.0,0.00043835,120]
[391693216,1760730651243,-500.0,0.00043835,120]
[391693217,1760730651253,-500.0,0.00043835,120]
[391693218,1760730651263,-500.0,0.00043835,120]
[391693219,1760730651273,-623.04305269,0.00043835,120]
[391693220,1760730651283,-501.38665946,0.00043835,120]
[391693221,1760730651293,-500.0,0.00043835,120]
[391693222,1760730651303,-500.0,0.00043835,120]
[391693223,1760730651313,-500.0,0.00043835,120]
[391693224,1760730651324,-500.0,0.00043835,120]
[391693225,1760730651335,-500.0,0.00043835,120]
[391693226,1760730651346,-500.0,0.00043835,120]
[391693227,1760730651498,-500.0,0.00043835,120]
[391693228,1760730651508,-500.0,0.00043835,120]
[391693229,1760730651518,-500.0,0.00043835,120]
[391693230,1760730651528,-500.0,0.00043835,120]
[391693231,1760730651537,-500.0,0.00043835,120]
[391693232,1760730651547,-501.7286333,0.00043835,120]
[391693233,1760730651556,-500.0,0.00043835,120]
[391693234,1760730651566,-500.0,0.00043835,120]
[391693235,1760730651576,-467.61886934,0.00043835,120]
[391693236,1760730651585,-500.0,0.00043835,120]
[391693237,1760730651596,-500.0,0.00043835,120]
[391693238,1760730651606,-500.0,0.00043835,120]
[391693239,1760730651617,-500.0,0.00043835,120]
[391693240,1760730651626,-500.0,0.00043835,120]
[391693241,1760730651636,-183.21353331,0.00043835,120]
[391693242,1760730651646,-500.0,0.00043835,120]
[391693243,1760730651655,-500.0,0.00043835,120]
[391693244,1760730651665,-500.0,0.00043835,120]
[391693245,1760730651673,-583.1469107,0.00043835,120]
[391693246,1760730651683,-420.52243314,0.00043835,120]
[391693247,1760730651693,-500.0,0.00043835,100]
[391693248,1760730651702,-500.0,0.00043835,120]
[391693249,1760730651712,-558.90681648,0.00043835,120]
[391693250,1760730651722,-500.0,0.00043835,120]
[391693251,1760730651732,-500.0,0.00043835,120]
[391693252,1760730651746,-408.71383319,0.00043835,120]
[391693253,1760730651756,-608.24615376,0.00043835,120]
[391693254,1760730651766,-500.0,0.00043835,120]
[391693255,1760730651776,-184.62210335,0.00043835,120]
[391693256,1760730651787,-500.0,0.00043835,120]
[391693257,1760730651796,-500.0,0.00043835,120]
[391693258,1760730651806,-500.0,0.00043835,120]
[391693259,1760730651818,-500.0,0.00043835,120]
[391693260,1760730651827,-500.0,0.00043835,120]
[391693261,1760730651837,-504.32918814,0.00043835,120]
[391693262,1760730651846,-500.0,0.00043835,120]
[391693263,1760730651855,-500.0,0.00043835,120]
[391693264,1760730651865,-641.89016093,0.00043835,120]
[391693265,1760730651878,-500.0,0.00043835,120]
[391693266,1760730651892,-500.0,0.00043835,120]
[391693267,1760730651902,-500.0,0.00043835,120]
[391693268,1760730651911,-500.0,0.00043835,120]
[391693269,1760730651920,-500.0,0.00043835,120]
[391693270,1760730651930,-500.0,0.00043835,120]
[391693271,1760730651940,-500.0,0.00043835,120]
[391693272,1760730651949,-328.71369394,0.00043835,120]
[391693273,1760730651959,-500.0,0.00043835,120]
[391693274,1760730651969,-500.0,0.00043835,120]
[391693275,1760730651979,-500.0,0.00043835,14]
[391693276,1760730651989,-500.0,0.00043835,120]
[391693277,1760730651998,-500.0,0.00043835,120]
[391693278,1760730652008,-500.0,0.00043835,120]
[391693279,1760730652017,-322.37731134,0.00043835,120]
[391693280,1760730652026,-500.0,0.00043835,120]
[391693281,1760730652035,-500.0,0.00043835,120]